[Event "*** SCC Grand Prix: Titled Tuesday Blitz"]
[Site "Chess.com"]
[Date "2020.06.02"]
[Round "7"]
[White "nihalsarin"]
[Black "Kira170"]
[Result "1/2-1/2"]
[WhiteElo "2984"]
[BlackElo "2629"]
[TimeControl "180+1"]
[EndTime "11:22:23 PDT"]
[Termination "Game drawn by repetition"]

1. e4 {[%clk 0:03:00.9]} 1... e6 {[%clk 0:02:59.6]} 2. d4 {[%clk 0:03:00.4]}
2... d5 {[%clk 0:02:59.2]} 3. Nc3 {[%clk 0:02:58]} 3... Nf6 {[%clk 0:02:58.4]}
4. e5 {[%clk 0:02:58.2]} 4... Nfd7 {[%clk 0:02:58.1]} 5. f4 {[%clk 0:02:58.8]}
5... c5 {[%clk 0:02:58.3]} 6. Nf3 {[%clk 0:02:59.5]} 6... Nc6 {[%clk 0:02:58.6]}
7. Be3 {[%clk 0:03:00.1]} 7... Qb6 {[%clk 0:02:58.9]} 8. Na4 {[%clk 0:02:56.3]}
8... Qa5+ {[%clk 0:02:58.7]} 9. c3 {[%clk 0:02:56.5]} 9... b6 {[%clk 0:02:58.9]}
10. Bd2 {[%clk 0:02:50.6]} 10... c4 {[%clk 0:02:58.2]} 11. b4 {[%clk 0:02:50.4]}
11... Nxb4 {[%clk 0:02:58.4]} 12. cxb4 {[%clk 0:02:50.2]} 12... Bxb4 {[%clk
0:02:59.3]} 13. Bxb4 {[%clk 0:02:06.8]} 13... Qxb4+ {[%clk 0:02:58]} 14. Kf2
{[%clk 0:02:07.7]} 14... b5 {[%clk 0:02:56.3]} 15. Nc5 {[%clk 0:02:06.1]} 15...
Nxc5 {[%clk 0:02:56.4]} 16. dxc5 {[%clk 0:02:06.1]} 16... Qxc5+ {[%clk
0:02:56.8]} 17. Qd4 {[%clk 0:02:03.3]} 17... Qxd4+ {[%clk 0:02:56.1]} 18. Nxd4
{[%clk 0:02:04.2]} 18... Bd7 {[%clk 0:02:56.4]} 19. Be2 {[%clk 0:02:02.5]} 19...
Ke7 {[%clk 0:02:56]} 20. Rhb1 {[%clk 0:02:02.4]} 20... Rhb8 {[%clk 0:02:52.2]}
21. a3 {[%clk 0:02:02.9]} 21... a5 {[%clk 0:02:51.4]} 22. Nc2 {[%clk 0:02:03.6]}
22... f6 {[%clk 0:02:46.4]} 23. Ke3 {[%clk 0:02:00.6]} 23... fxe5 {[%clk
0:02:42.5]} 24. fxe5 {[%clk 0:02:01.5]} 24... Be8 {[%clk 0:02:42.2]} 25. Rb2
{[%clk 0:01:57]} 25... Rb6 {[%clk 0:02:22]} 26. Kd2 {[%clk 0:01:42.2]} 26...
Rab8 {[%clk 0:02:18.9]} 27. Kc3 {[%clk 0:01:42.3]} 27... Bg6 {[%clk 0:02:14.8]}
28. Nd4 {[%clk 0:01:42.3]} 28... Kf7 {[%clk 0:01:34.1]} 29. Bg4 {[%clk
0:01:35.6]} 29... b4+ {[%clk 0:01:32]} 30. axb4 {[%clk 0:01:36.5]} 30... axb4+
{[%clk 0:01:32]} 31. Rxb4 {[%clk 0:01:37.2]} 31... Rxb4 {[%clk 0:01:31.8]} 32.
Bxe6+ {[%clk 0:01:37.8]} 32... Ke8 {[%clk 0:01:19.5]} 33. Bxd5 {[%clk
0:01:25.1]} 33... Rb1 {[%clk 0:01:07.8]} 34. Ra7 {[%clk 0:01:24.6]} 34... Rc1+
{[%clk 0:01:02.7]} 35. Kd2 {[%clk 0:01:24.7]} 35... c3+ {[%clk 0:01:01.4]} 36.
Ke2 {[%clk 0:00:47.5]} 36... c2 {[%clk 0:00:29.4]} 37. Rc7 {[%clk 0:00:28.3]}
37... Rd1 {[%clk 0:00:15.1]} 38. Bc6+ {[%clk 0:00:04.2]} 38... Kf8 {[%clk
0:00:14.8]} 39. Nxc2 {[%clk 0:00:04.5]} 39... Bxc2 {[%clk 0:00:14.4]} 40. e6
{[%clk 0:00:05.1]} 40... Re8 {[%clk 0:00:09.2]} 41. Bxe8 {[%clk 0:00:04.7]}
41... Kxe8 {[%clk 0:00:06.8]} 42. Rxc2 {[%clk 0:00:04.4]} 42... Rd6 {[%clk
0:00:07]} 43. Rc8+ {[%clk 0:00:04.5]} 43... Ke7 {[%clk 0:00:06]} 44. Rc7+ {[%clk
0:00:05.2]} 44... Kf6 {[%clk 0:00:05.8]} 45. Rf7+ {[%clk 0:00:05.3]} 45... Kg6
{[%clk 0:00:04.1]} 46. Re7 {[%clk 0:00:05.9]} 46... Kf6 {[%clk 0:00:03.8]} 47.
Rf7+ {[%clk 0:00:06.4]} 47... Kg6 {[%clk 0:00:03.7]} 48. Ra7 {[%clk 0:00:07]}
48... Rxe6+ {[%clk 0:00:03.4]} 49. Kf3 {[%clk 0:00:07.6]} 49... Rf6+ {[%clk
0:00:03.6]} 50. Kg4 {[%clk 0:00:08.1]} 50... h6 {[%clk 0:00:03.6]} 51. h4 {[%clk
0:00:08.6]} 51... Rd6 {[%clk 0:00:03.6]} 52. Rb7 {[%clk 0:00:08.4]} 52... Re6
{[%clk 0:00:03.4]} 53. Kh3 {[%clk 0:00:08.8]} 53... Rd6 {[%clk 0:00:03.6]} 54.
Kg3 {[%clk 0:00:09.3]} 54... Re6 {[%clk 0:00:03.8]} 55. Rb5 {[%clk 0:00:09.3]}
55... Rd6 {[%clk 0:00:03.9]} 56. Kf3 {[%clk 0:00:09.8]} 56... Re6 {[%clk
0:00:04.3]} 57. Kf4 {[%clk 0:00:10.4]} 57... Rf6+ {[%clk 0:00:05.2]} 58. Ke4
{[%clk 0:00:09.8]} 58... Re6+ {[%clk 0:00:05.5]} 59. Kf3 {[%clk 0:00:09.8]}
59... Rf6+ {[%clk 0:00:06.4]} 60. Kg4 {[%clk 0:00:10.1]} 60... Re6 {[%clk
0:00:07]} 61. g3 {[%clk 0:00:10.6]} 61... Rf6 {[%clk 0:00:06.8]} 62. Rc5 {[%clk
0:00:09.7]} 62... Re6 {[%clk 0:00:07.1]} 63. Kf4 {[%clk 0:00:09.6]} 63... Rf6+
{[%clk 0:00:08]} 64. Ke4 {[%clk 0:00:10]} 64... Re6+ {[%clk 0:00:08.3]} 65. Kf3
{[%clk 0:00:10.5]} 65... Rf6+ {[%clk 0:00:09.2]} 66. Kg2 {[%clk 0:00:11.1]}
66... Re6 {[%clk 0:00:09.5]} 67. Rc4 {[%clk 0:00:11.6]} 67... Rf6 {[%clk
0:00:09.9]} 68. g4 {[%clk 0:00:12]} 68... Re6 {[%clk 0:00:10]} 69. Kg3 {[%clk
0:00:12.4]} 69... Kh7 {[%clk 0:00:10.3]} 70. Kf4 {[%clk 0:00:12.4]} 70... Rd6
{[%clk 0:00:10.7]} 71. Rc7 {[%clk 0:00:11.9]} 71... Rf6+ {[%clk 0:00:10.7]} 72.
Kg3 {[%clk 0:00:11.9]} 72... Ra6 {[%clk 0:00:11.6]} 73. Rc3 {[%clk 0:00:11]}
73... Rb6 {[%clk 0:00:11.6]} 74. Rf3 {[%clk 0:00:11.4]} 74... Ra6 {[%clk
0:00:11.9]} 75. Re3 {[%clk 0:00:09.6]} 75... Rb6 {[%clk 0:00:12]} 76. Kf4 {[%clk
0:00:09.9]} 76... Ra6 {[%clk 0:00:12.2]} 77. g5 {[%clk 0:00:09.6]} 77... hxg5+
{[%clk 0:00:11.7]} 78. Kxg5 {[%clk 0:00:08.2]} 78... Ra5+ {[%clk 0:00:11.5]} 79.
Kg4 {[%clk 0:00:08.7]} 79... Ra4+ {[%clk 0:00:11.7]} 80. Kg3 {[%clk 0:00:09.3]}
80... Ra5 {[%clk 0:00:11.7]} 81. Rf3 {[%clk 0:00:09.7]} 81... Ra6 {[%clk
0:00:11.8]} 82. Kg4 {[%clk 0:00:10.2]} 82... Rg6+ {[%clk 0:00:11.8]} 83. Kh5
{[%clk 0:00:10.6]} 83... Rh6+ {[%clk 0:00:12.2]} 84. Kg4 {[%clk 0:00:11]} 84...
Rg6+ {[%clk 0:00:12.6]} 85. Kh5 {[%clk 0:00:11.6]} 85... Rh6+ {[%clk 0:00:13.1]}
86. Kg4 {[%clk 0:00:12]} 86... Rg6+ {[%clk 0:00:13.5]} 1/2-1/2

[Event "*** SCC Grand Prix: Titled Tuesday Blitz"]
[Site "Chess.com"]
[Date "2020.06.02"]
[Round "7"]
[White "EfrenRamos1"]
[Black "Stronger1799"]
[Result "1/2-1/2"]
[WhiteElo "2191"]
[BlackElo "2343"]
[TimeControl "180+1"]
[EndTime "11:22:24 PDT"]
[Termination "Game drawn - insufficient material"]

1. d4 {[%clk 0:03:00.7]} 1... Nf6 {[%clk 0:02:53.5]} 2. c4 {[%clk 0:02:58.3]}
2... g6 {[%clk 0:02:53.9]} 3. Nc3 {[%clk 0:02:53.6]} 3... d5 {[%clk 0:02:54.3]}
4. Nf3 {[%clk 0:02:51.5]} 4... Bg7 {[%clk 0:02:54.3]} 5. Bf4 {[%clk 0:02:50]}
5... O-O {[%clk 0:02:54.4]} 6. e3 {[%clk 0:02:49.3]} 6... c5 {[%clk 0:02:54.2]}
7. h3 {[%clk 0:02:46.6]} 7... cxd4 {[%clk 0:02:53.6]} 8. exd4 {[%clk 0:02:45.6]}
8... Nc6 {[%clk 0:02:54]} 9. Bd3 {[%clk 0:02:42.5]} 9... dxc4 {[%clk 0:02:53.8]}
10. Bxc4 {[%clk 0:02:41.6]} 10... Ne8 {[%clk 0:02:38.3]} 11. d5 {[%clk
0:02:29.5]} 11... Qa5 {[%clk 0:02:11.7]} 12. Bd2 {[%clk 0:02:13.6]} 12... Qb4
{[%clk 0:01:45.8]} 13. Qb3 {[%clk 0:02:03.6]} 13... Qxb3 {[%clk 0:01:37.5]} 14.
axb3 {[%clk 0:02:03.7]} 14... Nb4 {[%clk 0:01:35.1]} 15. O-O {[%clk 0:01:58]}
15... Nd6 {[%clk 0:01:31.7]} 16. Nb5 {[%clk 0:01:52.3]} 16... Nxb5 {[%clk
0:01:15.3]} 17. Bxb4 {[%clk 0:01:48.6]} 17... Nd6 {[%clk 0:01:14.9]} 18. Bc3
{[%clk 0:01:38.8]} 18... Bxc3 {[%clk 0:01:07.9]} 19. bxc3 {[%clk 0:01:37.4]}
19... Nxc4 {[%clk 0:01:04.9]} 20. bxc4 {[%clk 0:01:36.7]} 20... Bf5 {[%clk
0:01:05.7]} 21. c5 {[%clk 0:01:29.5]} 21... Rfc8 {[%clk 0:01:03.3]} 22. Ra5
{[%clk 0:01:28]} 22... Be4 {[%clk 0:00:55.1]} 23. c4 {[%clk 0:01:24.9]} 23...
Rc7 {[%clk 0:00:45.9]} 24. Nd2 {[%clk 0:01:22.7]} 24... Bf5 {[%clk 0:00:42.9]}
25. g4 {[%clk 0:01:21.2]} 25... Bd3 {[%clk 0:00:37.4]} 26. Re1 {[%clk
0:01:20.2]} 26... g5 {[%clk 0:00:10.7]} 27. Re3 {[%clk 0:01:12]} 27... Bg6
{[%clk 0:00:10.5]} 28. Rea3 {[%clk 0:01:11.5]} 28... a6 {[%clk 0:00:06.9]} 29.
f3 {[%clk 0:01:10.2]} 29... Rac8 {[%clk 0:00:06.3]} 30. Kf2 {[%clk 0:01:06.7]}
30... Rxc5 {[%clk 0:00:05.6]} 31. Rxc5 {[%clk 0:01:04.2]} 31... Rxc5 {[%clk
0:00:06.5]} 32. Ke3 {[%clk 0:01:01]} 32... e5 {[%clk 0:00:01.9]} 33. dxe6 {[%clk
0:01:00.2]} 33... fxe6 {[%clk 0:00:02.1]} 34. Kd4 {[%clk 0:01:00.2]} 34... Rc6
{[%clk 0:00:02.5]} 35. c5 {[%clk 0:00:58]} 35... Kf7 {[%clk 0:00:02.4]} 36. Nc4
{[%clk 0:00:57.4]} 36... Rc7 {[%clk 0:00:02.4]} 37. Nd6+ {[%clk 0:00:55]} 37...
Kf6 {[%clk 0:00:02.8]} 38. Rb3 {[%clk 0:00:53.9]} 38... Rd7 {[%clk 0:00:01.7]}
39. Rxb7 {[%clk 0:00:52.8]} 39... Rxb7 {[%clk 0:00:01.9]} 40. Nxb7 {[%clk
0:00:52.7]} 40... e5+ {[%clk 0:00:02.4]} 41. Kd5 {[%clk 0:00:51.1]} 41... Bd3
{[%clk 0:00:03]} 42. Na5 {[%clk 0:00:45.4]} 42... Be2 {[%clk 0:00:03.1]} 43. Ke4
{[%clk 0:00:44.8]} 43... Ke6 {[%clk 0:00:03.6]} 44. c6 {[%clk 0:00:44.8]} 44...
Bb5 {[%clk 0:00:03.4]} 45. c7 {[%clk 0:00:30.9]} 45... Bd7 {[%clk 0:00:03.7]}
46. Nb3 {[%clk 0:00:28.8]} 46... Kd6 {[%clk 0:00:03.6]} 47. Nd2 {[%clk
0:00:25.3]} 47... Bc6+ {[%clk 0:00:03.4]} 48. Ke3 {[%clk 0:00:25.2]} 48... Kxc7
{[%clk 0:00:03.5]} 49. Nc4 {[%clk 0:00:25.7]} 49... e4 {[%clk 0:00:03]} 50. fxe4
{[%clk 0:00:25.7]} 50... Kd7 {[%clk 0:00:03.5]} 51. Kd4 {[%clk 0:00:25.6]} 51...
Ke6 {[%clk 0:00:03.7]} 52. e5 {[%clk 0:00:25]} 52... Bg2 {[%clk 0:00:03.6]} 53.
Nd2 {[%clk 0:00:22.9]} 53... Bxh3 {[%clk 0:00:03.5]} 54. Ne4 {[%clk 0:00:23.3]}
54... h6 {[%clk 0:00:03.2]} 55. Nc5+ {[%clk 0:00:23.2]} 55... Ke7 {[%clk
0:00:02.9]} 56. Nxa6 {[%clk 0:00:24.1]} 56... Bxg4 {[%clk 0:00:03.1]} 57. Nb4
{[%clk 0:00:24.2]} 57... Bf5 {[%clk 0:00:02.9]} 58. Nd5+ {[%clk 0:00:23.3]}
58... Ke6 {[%clk 0:00:03]} 59. Nc7+ {[%clk 0:00:23.6]} 59... Ke7 {[%clk
0:00:02.9]} 60. Nd5+ {[%clk 0:00:24]} 60... Kf7 {[%clk 0:00:03.3]} 61. Ne3
{[%clk 0:00:23.5]} 61... Be6 {[%clk 0:00:03.7]} 62. Ke4 {[%clk 0:00:23.2]} 62...
Kg6 {[%clk 0:00:04.2]} 63. Nc2 {[%clk 0:00:20.9]} 63... h5 {[%clk 0:00:04.5]}
64. Nd4 {[%clk 0:00:21.2]} 64... Bg4 {[%clk 0:00:04.1]} 65. Ke3 {[%clk
0:00:19.6]} 65... Kf7 {[%clk 0:00:04]} 66. Ke4 {[%clk 0:00:19.7]} 66... Be6
{[%clk 0:00:04.1]} 67. Ke3 {[%clk 0:00:19.3]} 67... h4 {[%clk 0:00:04.6]} 68.
Nf3 {[%clk 0:00:09.5]} 68... Kg6 {[%clk 0:00:04.2]} 69. Nd4 {[%clk 0:00:08.6]}
69... Kf7 {[%clk 0:00:02.8]} 70. Nf3 {[%clk 0:00:08.6]} 70... Kg6 {[%clk
0:00:01.8]} 71. Nd4 {[%clk 0:00:08.7]} 71... Bd5 {[%clk 0:00:02]} 72. Ke2 {[%clk
0:00:05.5]} 72... h3 {[%clk 0:00:02.3]} 73. Kf2 {[%clk 0:00:05.6]} 73... g4
{[%clk 0:00:02.3]} 74. Kg3 {[%clk 0:00:05.6]} 74... Kg5 {[%clk 0:00:02.7]} 75.
Ne2 {[%clk 0:00:05.4]} 75... Kf5 {[%clk 0:00:02.6]} 76. Nf4 {[%clk 0:00:05.5]}
76... Bf3 {[%clk 0:00:03]} 77. Nxh3 {[%clk 0:00:05.5]} 77... Kxe5 {[%clk
0:00:02.8]} 78. Nf2 {[%clk 0:00:05.4]} 78... Kf5 {[%clk 0:00:02.5]} 79. Nxg4
{[%clk 0:00:06.3]} 1/2-1/2

[Event "*** SCC Grand Prix: Titled Tuesday Blitz"]
[Site "Chess.com"]
[Date "2020.06.02"]
[Round "7"]
[White "atwalcb"]
[Black "MarcoRiehle"]
[Result "0-1"]
[WhiteElo "2381"]
[BlackElo "2632"]
[TimeControl "180+1"]
[EndTime "11:22:29 PDT"]
[Termination "MarcoRiehle won by checkmate"]

1. d4 {[%clk 0:02:40]} 1... d5 {[%clk 0:02:58.9]} 2. Nf3 {[%clk 0:02:39.3]} 2...
e6 {[%clk 0:02:58.8]} 3. c4 {[%clk 0:02:38.3]} 3... Nf6 {[%clk 0:02:58.2]} 4. g3
{[%clk 0:02:37.5]} 4... dxc4 {[%clk 0:02:57.5]} 5. Bg2 {[%clk 0:02:30.6]} 5...
Bb4+ {[%clk 0:02:57.1]} 6. Bd2 {[%clk 0:02:27]} 6... a5 {[%clk 0:02:56.5]} 7.
O-O {[%clk 0:02:21.3]} 7... O-O {[%clk 0:02:54.9]} 8. a3 {[%clk 0:02:05.3]} 8...
Bxd2 {[%clk 0:02:54.7]} 9. Nbxd2 {[%clk 0:02:05.2]} 9... b5 {[%clk 0:02:54.7]}
10. a4 {[%clk 0:01:54.8]} 10... c6 {[%clk 0:02:49.6]} 11. Ne5 {[%clk 0:01:52.6]}
11... Ra6 {[%clk 0:02:45.7]} 12. Nxc6 {[%clk 0:01:42.1]} 12... Rxc6 {[%clk
0:02:44.8]} 13. Bxc6 {[%clk 0:01:42.6]} 13... Nxc6 {[%clk 0:02:45.7]} 14. axb5
{[%clk 0:01:41.7]} 14... Nxd4 {[%clk 0:02:45]} 15. Nxc4 {[%clk 0:01:40]} 15...
Nxb5 {[%clk 0:02:08.3]} 16. Qxd8 {[%clk 0:01:34.8]} 16... Rxd8 {[%clk
0:02:09.2]} 17. Nxa5 {[%clk 0:01:35]} 17... Nd4 {[%clk 0:02:07.7]} 18. Rfd1
{[%clk 0:01:25.1]} 18... Nxe2+ {[%clk 0:01:55.4]} 19. Kf1 {[%clk 0:01:23.1]}
19... Nd4 {[%clk 0:01:55.6]} 20. Nc6 {[%clk 0:01:15.8]} 20... Nxc6 {[%clk
0:01:52.4]} 21. Rxd8+ {[%clk 0:01:15.1]} 21... Nxd8 {[%clk 0:01:51.7]} 22. Ra8
{[%clk 0:01:15.7]} 22... Bd7 {[%clk 0:01:46]} 23. Rxd8+ {[%clk 0:01:15.8]} 23...
Be8 {[%clk 0:01:46.3]} 24. b4 {[%clk 0:01:15.2]} 24... Kf8 {[%clk 0:01:46.6]}
25. Ke2 {[%clk 0:01:11.9]} 25... Ke7 {[%clk 0:01:46.8]} 26. Rb8 {[%clk
0:01:11.9]} 26... Nd5 {[%clk 0:01:46.6]} 27. Kd3 {[%clk 0:01:09.8]} 27... Nc7
{[%clk 0:01:40.5]} 28. Kd4 {[%clk 0:01:05.8]} 28... Kd6 {[%clk 0:01:37.7]} 29.
Rb6+ {[%clk 0:01:05.5]} 29... Bc6 {[%clk 0:01:36.7]} 30. Kc4 {[%clk 0:01:02]}
30... e5 {[%clk 0:01:33.5]} 31. Rb8 {[%clk 0:00:59]} 31... f5 {[%clk 0:01:29.6]}
32. Rh8 {[%clk 0:00:54.2]} 32... h6 {[%clk 0:01:26.9]} 33. Rh7 {[%clk
0:00:54.4]} 33... Bd5+ {[%clk 0:01:23.9]} 34. Kd3 {[%clk 0:00:51.1]} 34... Ne6
{[%clk 0:01:23.8]} 35. Rh8 {[%clk 0:00:49.2]} 35... e4+ {[%clk 0:01:19.8]} 36.
Ke3 {[%clk 0:00:48.3]} 36... Ke5 {[%clk 0:01:11.7]} 37. b5 {[%clk 0:00:45.5]}
37... g5 {[%clk 0:01:07.8]} 38. Rxh6 {[%clk 0:00:41.2]} 38... f4+ {[%clk
0:01:08]} 39. gxf4+ {[%clk 0:00:41.1]} 39... gxf4+ {[%clk 0:01:08.9]} 40. Kd2
{[%clk 0:00:41.1]} 40... Kd4 {[%clk 0:01:05.3]} 41. b6 {[%clk 0:00:40.9]} 41...
e3+ {[%clk 0:01:05.2]} 42. fxe3+ {[%clk 0:00:40.8]} 42... fxe3+ {[%clk
0:01:06.1]} 43. Ke1 {[%clk 0:00:40.8]} 43... Nf4 {[%clk 0:01:04.6]} 44. Rh4
{[%clk 0:00:35.8]} 44... Ke4 {[%clk 0:01:01.6]} 45. Rg4 {[%clk 0:00:35.8]} 45...
Bb7 {[%clk 0:00:45.6]} 46. Rg7 {[%clk 0:00:21.2]} 46... Kf3 {[%clk 0:00:43.9]}
47. Rg3+ {[%clk 0:00:20.9]} 47... Ke4 {[%clk 0:00:43.8]} 48. Rg4 {[%clk
0:00:21.4]} 48... Ba6 {[%clk 0:00:40]} 49. h4 {[%clk 0:00:14.9]} 49... Kf5
{[%clk 0:00:35.8]} 50. Rg5+ {[%clk 0:00:14.7]} 50... Kf6 {[%clk 0:00:34.4]} 51.
Rg4 {[%clk 0:00:14]} 51... Nd3+ {[%clk 0:00:31.3]} 52. Ke2 {[%clk 0:00:10.5]}
52... Ne5+ {[%clk 0:00:31.1]} 53. Kxe3 {[%clk 0:00:10.7]} 53... Nxg4+ {[%clk
0:00:31.2]} 54. Kf4 {[%clk 0:00:10.6]} 54... Ne5 {[%clk 0:00:31.1]} 55. h5
{[%clk 0:00:10.6]} 55... Nd7 {[%clk 0:00:31.3]} 56. h6 {[%clk 0:00:10.1]} 56...
Nxb6 {[%clk 0:00:30.7]} 57. h7 {[%clk 0:00:10.4]} 57... Kg7 {[%clk 0:00:25.9]}
58. h8=Q+ {[%clk 0:00:11.3]} 58... Kxh8 {[%clk 0:00:25.9]} 59. Ke5 {[%clk
0:00:11.6]} 59... Bf1 {[%clk 0:00:23.5]} 60. Kf4 {[%clk 0:00:11.5]} 60... Kg7
{[%clk 0:00:23.5]} 61. Ke5 {[%clk 0:00:12]} 61... Kg6 {[%clk 0:00:23.2]} 62. Kf4
{[%clk 0:00:12.4]} 62... Kf6 {[%clk 0:00:22.8]} 63. Ke4 {[%clk 0:00:12.9]} 63...
Ke6 {[%clk 0:00:22.6]} 64. Kd4 {[%clk 0:00:11.9]} 64... Bg2 {[%clk 0:00:21.3]}
65. Kc5 {[%clk 0:00:10.2]} 65... Nd7+ {[%clk 0:00:21.2]} 66. Kd4 {[%clk
0:00:10.6]} 66... Bd5 {[%clk 0:00:19.7]} 67. Ke3 {[%clk 0:00:10.4]} 67... Ke5
{[%clk 0:00:19.8]} 68. Kd3 {[%clk 0:00:10.9]} 68... Nc5+ {[%clk 0:00:18.9]} 69.
Kc3 {[%clk 0:00:10.2]} 69... Be4 {[%clk 0:00:17.6]} 70. Kb4 {[%clk 0:00:08.8]}
70... Kd5 {[%clk 0:00:17]} 71. Kb5 {[%clk 0:00:09.2]} 71... Bd3+ {[%clk
0:00:16.5]} 72. Kb4 {[%clk 0:00:09.7]} 72... Ne4 {[%clk 0:00:16.6]} 73. Kb3
{[%clk 0:00:09.7]} 73... Kc5 {[%clk 0:00:17]} 74. Kb2 {[%clk 0:00:08.6]} 74...
Kc4 {[%clk 0:00:16.9]} 75. Ka3 {[%clk 0:00:08.8]} 75... Kc3 {[%clk 0:00:16.8]}
76. Ka2 {[%clk 0:00:09.3]} 76... Nd2 {[%clk 0:00:15.6]} 77. Ka1 {[%clk
0:00:08.5]} 77... Nb3+ {[%clk 0:00:15.7]} 78. Ka2 {[%clk 0:00:08.8]} 78... Bc2
{[%clk 0:00:16]} 79. Ka3 {[%clk 0:00:08.6]} 79... Bb1 {[%clk 0:00:16.6]} 80. Ka4
{[%clk 0:00:08.8]} 80... Nd4 {[%clk 0:00:17.2]} 81. Ka3 {[%clk 0:00:08.4]} 81...
Nb5+ {[%clk 0:00:16.1]} 82. Ka4 {[%clk 0:00:08.5]} 82... Kc4 {[%clk 0:00:16.7]}
83. Ka5 {[%clk 0:00:09]} 83... Kc5 {[%clk 0:00:17.2]} 84. Ka4 {[%clk 0:00:09.4]}
84... Bc2+ {[%clk 0:00:17.7]} 85. Ka5 {[%clk 0:00:09.8]} 85... Nd6 {[%clk
0:00:17.9]} 86. Ka6 {[%clk 0:00:09.7]} 86... Bd1 {[%clk 0:00:18.3]} 87. Ka5
{[%clk 0:00:10.1]} 87... Nb7+ {[%clk 0:00:18]} 88. Ka6 {[%clk 0:00:10.4]} 88...
Kc6 {[%clk 0:00:18.4]} 89. Ka7 {[%clk 0:00:10.9]} 89... Kc7 {[%clk 0:00:18.7]}
90. Ka6 {[%clk 0:00:11.1]} 90... Be2+ {[%clk 0:00:19.2]} 91. Ka7 {[%clk
0:00:11.6]} 91... Nd6 {[%clk 0:00:19.5]} 92. Ka8 {[%clk 0:00:11.6]} 92... Bf1
{[%clk 0:00:19.7]} 93. Ka7 {[%clk 0:00:11.7]} 93... Nc8+ {[%clk 0:00:20]} 94.
Ka8 {[%clk 0:00:11.5]} 94... Bg2# {[%clk 0:00:20.4]} 0-1

[Event "*** SCC Grand Prix: Titled Tuesday Blitz"]
[Site "Chess.com"]
[Date "2020.06.02"]
[Round "8"]
[White "OrtizMarcos"]
[Black "latixxa"]
[Result "1-0"]
[WhiteElo "2333"]
[BlackElo "2156"]
[TimeControl "180+1"]
[EndTime "11:32:42 PDT"]
[Termination "OrtizMarcos won by resignation"]

1. e4 {[%clk 0:03:00.9]} 1... c5 {[%clk 0:02:59.6]} 2. Nf3 {[%clk 0:03:01.1]}
2... d6 {[%clk 0:02:58.5]} 3. d4 {[%clk 0:03:01.5]} 3... cxd4 {[%clk 0:02:59.4]}
4. Nxd4 {[%clk 0:03:02.2]} 4... Nf6 {[%clk 0:02:59.6]} 5. Nc3 {[%clk 0:03:02.7]}
5... g6 {[%clk 0:02:59.6]} 6. Be3 {[%clk 0:03:02.3]} 6... Bg7 {[%clk 0:02:59.7]}
7. f3 {[%clk 0:03:03]} 7... Nc6 {[%clk 0:02:59.6]} 8. Qd2 {[%clk 0:03:03.7]}
8... O-O {[%clk 0:02:59.6]} 9. Bc4 {[%clk 0:03:04.2]} 9... Bd7 {[%clk
0:02:58.5]} 10. h4 {[%clk 0:03:04.5]} 10... Qa5 {[%clk 0:02:56.2]} 11. O-O-O
{[%clk 0:03:03.7]} 11... Rfc8 {[%clk 0:02:55.3]} 12. Bb3 {[%clk 0:03:04.2]}
12... Ne5 {[%clk 0:02:55]} 13. Kb1 {[%clk 0:03:04]} 13... Nc4 {[%clk 0:02:54.6]}
14. Bxc4 {[%clk 0:03:03.3]} 14... Rxc4 {[%clk 0:02:55.5]} 15. Nb3 {[%clk
0:02:56.9]} 15... Qd8 {[%clk 0:02:52.5]} 16. h5 {[%clk 0:02:52.2]} 16... a5
{[%clk 0:02:50.8]} 17. hxg6 {[%clk 0:02:51.4]} 17... fxg6 {[%clk 0:02:51.7]} 18.
Bh6 {[%clk 0:02:46.6]} 18... a4 {[%clk 0:02:49.9]} 19. Bxg7 {[%clk 0:02:42.6]}
19... Kxg7 {[%clk 0:02:50.8]} 20. Qh6+ {[%clk 0:02:36.4]} 20... Kg8 {[%clk
0:02:27.9]} 21. Nd5 {[%clk 0:01:55]} 21... axb3 {[%clk 0:02:20]} 22. Nxf6+
{[%clk 0:01:54.1]} 22... exf6 {[%clk 0:02:20.9]} 23. Qxh7+ {[%clk 0:01:54.7]}
23... Kf8 {[%clk 0:02:21.2]} 24. cxb3 {[%clk 0:01:50.6]} 24... Rc6 {[%clk
0:02:12.6]} 25. Qxg6 {[%clk 0:01:47.3]} 1-0

[Event "*** SCC Grand Prix: Titled Tuesday Blitz"]
[Site "Chess.com"]
[Date "2020.06.02"]
[Round "8"]
[White "Lion-Al-Messi"]
[Black "talman67"]
[Result "0-1"]
[WhiteElo "2351"]
[BlackElo "2547"]
[TimeControl "180+1"]
[EndTime "11:33:05 PDT"]
[Termination "talman67 won by resignation"]

1. e4 {[%clk 0:02:41.7]} 1... e5 {[%clk 0:02:59.1]} 2. Nf3 {[%clk 0:02:41.7]}
2... Nc6 {[%clk 0:02:59.4]} 3. Bb5 {[%clk 0:02:41]} 3... a6 {[%clk 0:02:59.3]}
4. Ba4 {[%clk 0:02:39.5]} 4... Nf6 {[%clk 0:02:53.5]} 5. O-O {[%clk 0:02:38.3]}
5... Nxe4 {[%clk 0:02:52.6]} 6. d4 {[%clk 0:02:33.6]} 6... b5 {[%clk 0:02:52.5]}
7. Bb3 {[%clk 0:02:33.3]} 7... d5 {[%clk 0:02:53]} 8. dxe5 {[%clk 0:02:33.6]}
8... Be6 {[%clk 0:02:53.6]} 9. Nbd2 {[%clk 0:02:34]} 9... Nc5 {[%clk 0:02:52.5]}
10. c3 {[%clk 0:02:34.1]} 10... d4 {[%clk 0:02:52.7]} 11. Bxe6 {[%clk
0:02:15.7]} 11... Nxe6 {[%clk 0:02:53.6]} 12. cxd4 {[%clk 0:02:15.5]} 12...
Ncxd4 {[%clk 0:02:54.5]} 13. Ne4 {[%clk 0:02:14.5]} 13... Qd5 {[%clk 0:02:51.2]}
14. Nxd4 {[%clk 0:01:57.2]} 14... Qxd4 {[%clk 0:02:49.8]} 15. Qxd4 {[%clk
0:01:56.1]} 15... Nxd4 {[%clk 0:02:50.7]} 16. Be3 {[%clk 0:01:54.4]} 16... Ne6
{[%clk 0:02:47.4]} 17. Rac1 {[%clk 0:01:53.6]} 17... Be7 {[%clk 0:02:47.4]} 18.
f4 {[%clk 0:01:52.6]} 18... g6 {[%clk 0:02:46.9]} 19. g4 {[%clk 0:01:52]} 19...
O-O-O {[%clk 0:02:44]} 20. f5 {[%clk 0:01:49.7]} 20... gxf5 {[%clk 0:02:44.9]}
21. gxf5 {[%clk 0:01:50.6]} 21... Rhg8+ {[%clk 0:02:45.5]} 22. Kh1 {[%clk
0:01:49.9]} 22... Ng5 {[%clk 0:02:45.3]} 23. f6 {[%clk 0:01:44.4]} 23... Nxe4
{[%clk 0:02:45.2]} 24. fxe7 {[%clk 0:01:44.6]} 24... Rd7 {[%clk 0:02:38.9]} 25.
Rxf7 {[%clk 0:01:42.6]} 25... Re8 {[%clk 0:02:39.1]} 26. Rxh7 {[%clk 0:01:38.2]}
26... Rdxe7 {[%clk 0:02:37]} 27. Rxe7 {[%clk 0:01:39.1]} 27... Rxe7 {[%clk
0:02:37.9]} 28. Bf4 {[%clk 0:01:34.7]} 28... Rg7 {[%clk 0:02:31.4]} 29. h4
{[%clk 0:01:31.7]} 29... Rg4 {[%clk 0:02:20.2]} 30. Bh2 {[%clk 0:01:20.5]} 0-1